bitfinex-derivatives/quotes_SOLF0:USTF0_20250514
["timestamp","ask_amount","ask_price","bid_price","bid_amount"]
[1747250277960,65.374,177.47,177.38,9.89490233]
[1747250278160,65.374,177.47,177.43,5.6349]
[1747250278361,59.74,177.47,177.41,9.89490233]
[1747250278563,59.8,177.48,177.41,69.65490233]
[1747250278951,1.8568,177.49,177.41,69.65490233]
[1747250279551,65.413,177.5,177.41,59.76]
[1747250279758,59.74,177.5,177.43,9.89490233]
[1747250280066,59.76,177.51,177.43,9.89490233]
[1747250280863,5.6323,177.52,177.48,5.6335]
[1747250282066,59.7,177.53,177.45,59.76]
[1747250282663,5.6325,177.52,177.48,5.6333]
[1747250282861,59.7,177.53,177.45,59.76]
[1747250283366,5.6323,177.52,177.45,59.76]
[1747250283666,59.62,177.53,177.45,59.76]
[1747250283969,5.6323,177.52,177.48,5.6333]
[1747250284363,59.62,177.53,177.45,59.76]
[1747250284562,5.6328,177.51,177.48,5.6335]
[1747250284764,59.62,177.53,177.48,5.6335]
[1747250285568,5.6323,177.52,177.48,5.6335]
[1747250285762,5.6323,177.52,177.49,5.6332]
[1747250286262,5.6323,177.52,177.45,59.76]
[1747250286469,5.6323,177.52,177.48,5.6333]
[1747250287070,5.6326,177.51,177.48,5.6333]
[1747250287670,5.633,177.5,177.47,5.6337]
[1747250287873,59.62,177.53,177.43,59.76]
[1747250289574,5.6329,177.5,177.46,5.6341]
[1747250289776,59.62,177.53,177.46,5.6341]
[1747250290074,5.6327,177.51,177.46,5.6341]
[1747250290274,5.6327,177.51,177.47,5.6337]
[1747250290575,5.6329,177.5,177.47,5.6337]
[1747250292570,59.62,177.53,177.42,59.76]
[1747250292770,59.62,177.53,177.42,59.36]
[1747250293078,5.633,177.5,177.47,5.6337]
[1747250293276,59.38,177.49,177.47,5.6337]
[1747250294778,59.38,177.49,177.48,5.6335]
[1747250294974,59.36,177.51,177.42,59.36]
[1747250295272,1.8978,177.54,177.44,15.74965141]
[1747250295476,1.8978,177.54,177.51,5.6323]
[1747250296076,7.5295,177.54,177.51,5.6323]
[1747250296575,1.8978,177.54,177.47,59.36]
[1747250296778,5.6321,177.53,177.5,5.6329]
[1747250298781,5.6324,177.52,177.5,5.6329]
[1747250299078,1.8978,177.54,177.5,5.6329]
[1747250299281,1.8978,177.54,177.47,59.36]
[1747250299479,1.8978,177.54,177.42,59.36]
[1747250299671,1.8693,177.53,177.42,59.36]
[1747250299874,5.6338,177.48,177.45,5.6342]
[1747250300381,5.6333,177.49,177.42,59.36]
[1747250300682,59.36,177.51,177.42,59.36]
[1747250300877,5.6333,177.49,177.42,59.36]
[1747250301284,59.36,177.51,177.42,59.36]
[1747250301577,5.6331,177.5,177.42,59.36]
[1747250301784,59.36,177.51,177.42,59.36]
[1747250302182,5.6335,177.49,177.42,59.36]
[1747250303585,5.6335,177.49,177.45,5.6342]
[1747250303781,5.6335,177.49,177.42,59.36]
[1747250304586,5.6335,177.49,177.46,5.6341]
[1747250304878,61.2493,177.53,177.42,69.20757732]
[1747250305085,1.8978,177.54,177.5,5.6327]
[1747250305287,61.2778,177.54,177.5,5.6327]
[1747250305483,5.6321,177.53,177.46,59.36]
[1747250305682,5.6321,177.53,177.48,5.6335]
[1747250305883,5.6321,177.53,177.46,59.36]
[1747250306085,5.6323,177.52,177.46,59.36]
[1747250306783,5.6323,177.52,177.48,5.6333]
[1747250307584,61.2778,177.54,177.48,5.6333]
[1747250307886,61.2778,177.54,177.49,5.6332]
[1747250308182,5.6325,177.52,177.49,5.6332]
[1747250309597,5.6326,177.51,177.48,5.6334]
[1747250309797,61.2778,177.54,177.46,59.36]
[1747250310098,61.2778,177.54,177.46,64.994]
[1747250310298,63.1632,177.54,177.46,64.994]
[1747250310498,63.1632,177.54,177.46,59.36]
[1747250311002,5.6335,177.49,177.46,64.9942]
[1747250311195,5.6335,177.49,177.46,59.36]
[1747250311600,5.6335,177.49,177.46,64.994]
[1747250312300,63.1632,177.54,177.42,118.74]
[1747250312500,9.84757732,177.53,177.42,118.74]
[1747250312898,5.6338,177.48,177.42,118.74]
[1747250313399,5.6339,177.47,177.44,5.6345]
[1747250316204,5.6337,177.48,177.41,59.36]
[1747250316801,65.0134,177.49,177.46,5.6342]
[1747250317501,5.6336,177.48,177.46,5.6342]
[1747250318004,5.6336,177.48,177.45,5.6344]
[1747250320504,5.6343,177.46,177.41,59.36]
[1747250321102,5.6343,177.46,177.43,5.635]
[1747250321606,5.6339,177.47,177.44,5.6347]
[1747250321805,59.38,177.49,177.41,59.36]
[1747250322204,5.6339,177.47,177.44,5.6346]
[1747250322400,59.38,177.49,177.41,59.36]
[1747250323106,5.634,177.47,177.44,5.6348]
[1747250323405,5.634,177.47,177.43,5.635]
[1747250323703,59.38,177.49,177.43,5.635]
[1747250323904,5.634,177.47,177.43,5.635]
[1747250324099,5.634,177.47,177.44,5.6348]
[1747250325207,5.6342,177.46,177.43,5.6351]
[1747250325407,59.38,177.49,177.41,59.36]
[1747250325707,5.634,177.47,177.43,5.635]
[1747250325903,5.634,177.47,177.41,59.36]
[1747250326304,59.38,177.49,177.41,59.36]
[1747250326507,5.634,177.47,177.43,5.6349]
[1747250326805,59.38,177.49,177.41,59.36]
[1747250327000,5.6343,177.46,177.43,5.635]
[1747250327198,59.38,177.49,177.41,59.36]
[1747250327607,5.6345,177.45,177.43,5.6351]
[1747250327907,5.6345,177.45,177.39,61.2772]
[1747250328105,5.6345,177.45,177.42,5.6354]
[1747250328303,59.38,177.45,177.39,1.8972]
[1747250328603,59.38,177.45,177.37,59.38]
[1747250328905,59.38,177.45,177.39,5.6362]
[1747250329111,59.38,177.45,177.37,59.38]
[1747250329406,9.84757732,177.42,177.3,1.7713]
[1747250329601,118.76,177.41,177.3,61.1513]
[1747250329803,118.76,177.41,177.33,5.6383]
[1747250330106,5.6378,177.35,177.33,5.6383]
[1747250330306,5.6378,177.35,177.3,61.1513]
[1747250331007,5.6375,177.36,177.3,61.1513]
[1747250331210,59.38,177.37,177.3,61.1513]
[1747250331411,5.6379,177.35,177.32,5.6384]
[1747250331602,59.38,177.37,177.3,59.38]
[1747250332111,5.6379,177.35,177.32,5.6384]
[1747250332315,59.38,177.37,177.3,59.38]
[1747250332809,5.6374,177.36,177.33,5.6383]
[1747250334410,118.76,177.37,177.29,1.763]
[1747250334906,124.3973,177.37,177.29,1.763]
[1747250335105,118.76,177.37,177.29,1.763]
[1747250335306,118.76,177.37,177.31,9.84757732]
[1747250335805,59.38,177.37,177.36,5.6374]
[1747250335999,5.6362,177.4,177.31,9.84757732]
[1747250337109,5.6362,177.4,177.37,5.6368]
[1747250337308,59.38,177.41,177.31,9.84757732]
[1747250337508,118.9,177.41,177.31,11.67807732]
[1747250337709,118.9,177.41,177.38,5.6365]
[1747250337903,124.536,177.41,177.38,5.6365]
[1747250338912,59.38,177.41,177.34,9.84757732]
[1747250339303,5.5117,177.46,177.34,9.84757732]
[1747250339509,118.94,177.45,177.34,69.38757732]
[1747250340012,5.6352,177.43,177.34,69.38757732]
[1747250340415,118.94,177.45,177.34,69.38757732]
[1747250340613,118.94,177.45,177.4,5.6358]
[1747250341315,5.6351,177.43,177.4,5.6358]
[1747250341517,118.94,177.45,177.34,69.38757732]
[1747250342415,5.6352,177.43,177.4,5.6358]
[1747250346414,5.6363,177.4,177.35,59.4]
[1747250346615,59.4,177.41,177.35,59.4]
[1747250346812,59.4,177.41,177.33,1.79]
[1747250346813,118.78,177.41,177.33,1.79]
[1747250347008,5.6373,177.37,177.34,5.6379]
[1747250347209,5.6373,177.37,177.33,1.79]
[1747250347508,5.6373,177.37,177.34,5.6379]
[1747250347919,5.6368,177.38,177.34,5.6379]
[1747250348120,5.6368,177.38,177.33,1.79]
[1747250348319,5.6364,177.39,177.35,5.6376]
[1747250349215,5.6368,177.38,177.33,1.79]
[1747250349520,118.78,177.41,177.33,1.79]
[1747250350117,5.6364,177.39,177.35,5.6374]
[1747250350312,118.78,177.41,177.33,1.79]
[1747250350518,65.0355,177.42,177.33,1.79]
[1747250350717,65.0355,177.42,177.34,69.24757732]
[1747250350910,65.0355,177.42,177.38,5.6365]
[1747250351119,65.0355,177.42,177.34,69.24757732]
[1747250351417,59.4,177.43,177.34,69.24757732]
[1747250351721,487.02,177.47,177.37,9.84757732]
[1747250351918,5.6345,177.45,177.37,9.84757732]
[1747250352114,5.6345,177.45,177.41,5.6356]
[1747250352915,5.6343,177.46,177.38,1.8984]
[1747250353111,118.8,177.47,177.38,61.2984]
[1747250353308,59.4,177.49,177.4,9.84757732]
[1747250353515,5.6338,177.48,177.44,5.6346]
[1747250353711,5.6338,177.48,177.41,1.9464]
[1747250354115,5.6338,177.48,177.44,5.6345]
[1747250354520,59.4,177.49,177.41,1.9464]
[1747250354723,59.4,177.49,177.38,63.0594]
[1747250354919,59.4,177.49,177.38,61.2984]
[1747250355120,5.6351,177.44,177.38,61.2984]
[1747250355519,5.6351,177.44,177.41,5.6356]
[1747250356820,5.6351,177.44,177.38,61.2984]
[1747250356821,59.4,177.45,177.38,61.2984]
[1747250357627,65.0345,177.45,177.42,5.6354]
[1747250361226,59.38,177.46,177.38,61.2984]
[1747250361627,59.38,177.46,177.38,63.1941]
[1747250364630,59.38,177.46,177.44,5.6345]
[1747250365023,59.38,177.46,177.38,63.1941]
[1747250365433,5.6337,177.48,177.38,63.1941]
[1747250365622,59.38,177.49,177.38,63.1941]
[1747250366330,5.6345,177.45,177.42,5.6353]
[1747250366530,59.38,177.49,177.38,63.1941]
[1747250367028,5.6347,177.45,177.41,5.6355]
[1747250367230,5.6347,177.45,177.38,61.2984]
[1747250367434,59.38,177.49,177.38,61.2984]
[1747250367635,5.6341,177.47,177.43,5.6349]
[1747250368435,5.6341,177.47,177.44,5.6348]
[1747250370529,71.13167732,177.5,177.38,120.6784]
[1747250370727,120.6641,177.5,177.41,9.84757732]
[1747250371232,120.6641,177.5,177.38,120.6784]
[1747250371432,120.6641,177.5,177.38,130.52597732]
[1747250371736,5.634,177.47,177.43,5.6349]
[1747250372132,130.51167732,177.5,177.35,1.8017]
[1747250372332,5.6347,177.45,177.41,5.6355]
[1747250373031,5.6349,177.44,177.41,5.6355]
[1747250373536,118.74,177.46,177.4,5.636]
[1747250373838,118.74,177.46,177.36,118.74]
[1747250374438,5.6349,177.44,177.41,5.6356]
[1747250376137,5.6352,177.43,177.4,5.6359]
[1747250376334,5.6352,177.43,177.36,118.74]
[1747250377033,5.635,177.44,177.36,118.74]
[1747250379841,5.635,177.44,177.41,5.6357]
[1747250380139,5.6352,177.43,177.35,11.64927732]
[1747250380339,118.74,177.46,177.36,118.74]
[1747250380541,118.74,177.46,177.4,5.6359]
[1747250381242,118.74,177.46,177.41,5.6356]
[1747250381439,5.6352,177.43,177.36,118.74]
[1747250381641,118.74,177.46,177.4,5.6359]
[1747250382542,118.74,177.46,177.41,5.6357]
[1747250383540,5.6351,177.43,177.41,5.6357]
[1747250386743,118.74,177.46,177.36,59.38]
[1747250387247,5.6353,177.43,177.4,5.6359]
[1747250387747,5.6342,177.46,177.43,5.6349]
[1747250389346,69.20757732,177.48,177.37,61.1389]
[1747250389546,1.91,177.47,177.37,61.1389]
[1747250390152,5.6354,177.43,177.41,5.6357]
[1747250390354,1.91,177.47,177.37,61.1389]
[1747250391251,5.6355,177.42,177.4,5.6359]
[1747250392252,5.6352,177.43,177.4,5.6359]
[1747250392453,5.6352,177.43,177.41,5.6357]
[1747250395454,5.6352,177.43,177.4,5.636]
[1747250397158,5.6355,177.42,177.4,5.636]
[1747250399661,5.6355,177.42,177.39,5.6363]
[1747250400461,5.6355,177.42,177.4,5.636]
[1747250400664,5.6352,177.43,177.4,5.636]
[1747250400866,59.34,177.44,177.4,5.636]
[1747250401160,5.6353,177.43,177.4,5.636]
[1747250401656,59.34,177.44,177.4,5.636]
[1747250401861,5.6352,177.43,177.4,5.636]
[1747250402162,59.34,177.44,177.41,5.6357]
[1747250402661,59.34,177.44,177.37,61.1389]
[1747250402862,5.6354,177.43,177.37,61.1389]
[1747250403058,59.34,177.44,177.37,61.1389]
[1747250403260,5.6352,177.43,177.37,61.1389]
[1747250403760,5.6352,177.43,177.4,5.636]
[1747250404659,59.34,177.44,177.37,61.1389]
[1747250404866,118.68,177.49,177.38,9.84757732]
[1747250405164,118.68,177.49,177.41,9.84757732]
[1747250405165,59.36,177.49,177.41,9.84757732]
[1747250405367,59.36,177.49,177.42,61.2412]
[1747250406468,64.9934,177.49,177.42,61.2412]
[1747250406863,59.36,177.49,177.42,61.2412]
[1747250407064,59.36,177.49,177.44,5.6345]
[1747250407966,5.6337,177.48,177.44,5.6345]
[1747250408170,5.6337,177.48,177.45,5.6344]
[1747250408368,64.9933,177.49,177.42,61.2412]
[1747250409468,64.9933,177.49,177.45,5.6342]
[1747250409668,5.6336,177.48,177.45,5.6342]
[1747250410371,59.36,177.49,177.42,61.2412]
[1747250410671,59.36,177.49,177.39,59.34]
[1747250412570,5.6342,177.46,177.39,59.34]
[1747250412772,59.36,177.49,177.39,59.34]
[1747250413368,59.36,177.49,177.42,5.6352]
[1747250413567,59.36,177.49,177.39,59.34]
[1747250413872,59.36,177.49,177.43,5.635]
[1747250414472,5.6341,177.47,177.43,5.635]
[1747250414767,64.9341,177.47,177.44,5.6347]
[1747250414972,59.3,177.47,177.39,59.34]
[1747250415272,59.3,177.47,177.45,5.6343]
[1747250415476,59.3,177.47,177.39,59.34]
[1747250415774,64.9339,177.47,177.39,59.34]
[1747250415974,64.9339,177.47,177.44,5.6346]
[1747250416469,5.6335,177.49,177.39,59.34]
[1747250416675,59.3,177.48,177.46,5.634]
[1747250417775,64.9135,177.49,177.39,70.6126]
[1747250417776,59.28,177.49,177.39,70.6126]
[1747250417980,59.28,177.49,177.41,9.84757732]
[1747250418179,59.28,177.49,177.41,69.12757732]
[1747250418469,59.28,177.53,177.41,69.12757732]
[1747250418666,59.28,177.53,177.44,9.84757732]
[1747250418872,59.28,177.53,177.45,61.0673]
[1747250419066,59.28,177.53,177.45,62.9237]
[1747250420879,64.9121,177.53,177.5,5.6328]
[1747250421381,5.6323,177.52,177.5,5.6328]
[1747250422076,59.28,177.53,177.5,5.6328]
[1747250422380,59.28,177.57,177.47,9.84757732]
[1747250422679,118.56,177.57,177.47,9.84757732]
[1747250422882,118.56,177.57,177.53,5.6317]
[1747250423183,124.1909,177.57,177.47,9.84757732]
[1747250423378,59.28,177.57,177.47,9.84757732]
[1747250423779,5.6311,177.56,177.47,9.84757732]
[1747250424081,5.6311,177.56,177.53,5.6319]
[1747250425183,5.6313,177.55,177.47,9.84757732]
[1747250425785,5.6313,177.55,177.51,5.6323]
[1747250426085,59.28,177.57,177.47,9.84757732]
[1747250426283,59.28,177.57,177.49,5.633]
[1747250427081,59.28,177.57,177.48,5.6335]
[1747250427281,9.84757732,177.55,177.45,1.7873]
[1747250427478,59.24,177.54,177.43,59.26]
[1747250427782,59.26,177.53,177.43,59.26]
[1747250427984,5.6329,177.51,177.48,5.6335]
[1747250429084,61.0498,177.53,177.48,5.6335]
[1747250429285,61.0498,177.53,177.49,5.6332]
[1747250429886,61.0498,177.53,177.48,5.6335]
[1747250430087,61.0498,177.53,177.43,59.26]
[1747250430283,9.84757732,177.52,177.41,3.584]
[1747250430480,1.7762,177.51,177.44,5.6347]
[1747250430679,59.24,177.5,177.44,5.6347]
[1747250430988,59.26,177.49,177.43,5.6351]
[1747250431185,59.26,177.49,177.39,605.46]
[1747250431386,5.6339,177.47,177.39,118.5]
[1747250431587,59.26,177.49,177.39,59.26]
[1747250432088,59.26,177.49,177.4,1.8019]
[1747250432887,5.6337,177.48,177.4,1.8019]
[1747250433388,5.6337,177.48,177.45,5.6343]
[1747250433579,64.8933,177.49,177.45,5.6343]
[1747250433980,59.26,177.49,177.46,5.634]
[1747250434983,59.26,177.49,177.4,1.8019]
[1747250435389,59.26,177.49,177.41,59.24]
[1747250436091,59.24,177.59,177.46,9.84757732]
[1747250436291,5.6313,177.56,177.47,59.28]
[1747250436490,64.7368,177.59,177.53,5.632]
[1747250436791,5.6309,177.57,177.47,59.28]
[1747250437190,64.7368,177.59,177.47,59.28]
[1747250437393,5.6305,177.58,177.48,3.6523]
[1747250438193,5.6307,177.57,177.48,3.6523]
[1747250439589,59.22,177.57,177.48,3.6523]
[1747250440192,59.22,177.57,177.54,5.6315]
[1747250441291,64.8508,177.57,177.54,5.6315]
[1747250441794,64.8507,177.57,177.54,5.6315]
[1747250442294,59.22,177.57,177.54,5.6315]
[1747250443296,59.22,177.57,177.55,5.6313]
[1747250445199,5.6305,177.58,177.55,5.6313]
[1747250445385,59.2,177.57,177.55,5.6313]
[1747250445591,59.2,177.57,177.54,5.6315]
[1747250448399,64.8307,177.57,177.54,5.6315]
[1747250450098,64.8307,177.57,177.55,5.6313]
[1747250450895,1.7857,177.59,177.49,9.84757732]
[1747250451095,59.18,177.58,177.49,9.84757732]
[1747250451290,1.7857,177.59,177.5,59.18]
[1747250451496,1.7857,177.59,177.57,5.6306]
[1747250451691,1.7857,177.59,177.51,59.18]
[1747250452195,1.7857,177.59,177.56,5.6308]
[1747250453397,1.7857,177.59,177.51,59.18]
[1747250454097,1.7857,177.59,177.53,5.6319]
[1747250454503,1.7857,177.59,177.52,5.6321]
[1747250454798,1.7857,177.59,177.51,59.18]
[1747250455102,5.631,177.57,177.53,5.6318]
[1747250455294,1.7857,177.59,177.53,5.6318]
[1747250455491,1.7857,177.59,177.48,3.6523]
[1747250455697,5.6318,177.54,177.51,5.6324]
[1747250456699,5.632,177.53,177.5,5.6328]
[1747250456897,59.16,177.56,177.5,5.6328]
[1747250457097,118.34,177.56,177.5,5.6328]
[1747250458201,118.34,177.56,177.49,5.6332]
[1747250458496,5.6328,177.51,177.47,59.18]
[1747250458706,9.84757732,177.55,177.47,59.18]
[1747250459003,118.34,177.56,177.47,69.02757732]
[1747250459300,118.34,177.56,177.53,5.6319]
[1747250459490,118.34,177.56,177.47,69.02757732]
[1747250459690,5.6316,177.55,177.47,69.02757732]
[1747250459891,5.6316,177.55,177.52,5.6321]
[1747250460900,118.34,177.56,177.47,59.18]
[1747250462202,5.6314,177.55,177.47,59.18]
[1747250462706,123.9711,177.56,177.52,5.6322]
[1747250463405,5.6314,177.55,177.51,5.6325]
[1747250463704,118.34,177.56,177.47,59.18]
[1747250464205,5.6319,177.54,177.5,5.6326]
[1747250466005,5.6319,177.54,177.51,5.6326]
[1747250466804,5.632,177.53,177.5,5.6328]
[1747250467506,5.6317,177.54,177.47,59.18]
[1747250468106,5.6317,177.54,177.5,5.6326]
[1747250468906,5.632,177.53,177.5,5.6326]
[1747250469106,5.632,177.53,177.47,59.18]
[1747250469404,118.34,177.56,177.47,59.18]
[1747250469604,5.6319,177.54,177.5,5.6327]
[1747250470608,5.6319,177.54,177.51,5.6326]
[1747250471307,5.632,177.53,177.5,5.6328]
[1747250471510,5.632,177.53,177.47,59.18]
[1747250472406,5.6317,177.54,177.47,59.18]
[1747250472709,118.34,177.56,177.5,5.6327]
[1747250472903,118.34,177.56,177.47,59.18]
[1747250473311,118.34,177.56,177.51,5.6326]
[1747250473613,118.34,177.56,177.47,59.18]
[1747250473800,128.18757732,177.56,177.45,9.84757732]
[1747250474000,128.18757732,177.56,177.44,59.18]
[1747250474001,9.84757732,177.53,177.44,59.18]
[1747250474212,120.2827,177.52,177.44,59.18]
[1747250474412,120.2827,177.52,177.46,5.634]
[1747250474608,5.6335,177.49,177.46,5.634]
[1747250474908,120.2827,177.52,177.46,5.634]
[1747250475510,5.6336,177.48,177.45,5.6344]
[1747250475811,122.064,177.52,177.44,59.18]
[1747250476215,122.064,177.52,177.45,5.6345]
[1747250476512,122.064,177.52,177.44,59.18]
[1747250476810,5.6338,177.48,177.45,5.6344]
[1747250477007,122.064,177.52,177.45,5.6344]
[1747250477311,5.6341,177.47,177.44,5.6346]
[1747250477711,59.16,177.48,177.4,59.16]
[1747250477909,118.32,177.48,177.41,5.6357]
[1747250478310,9.84757732,177.47,177.37,95.49654222]
[1747250478613,9.84757732,177.47,177.38,5.6365]
[1747250478808,9.84757732,177.47,177.36,80.79599721]
[1747250479218,1.8438,177.46,177.36,80.79599721]
[1747250479506,1.9314,177.45,177.36,80.79599721]
[1747250479713,118.36,177.44,177.38,5.6366]
[1747250480514,5.636,177.41,177.37,5.6369]
[1747250480907,5.636,177.41,177.36,80.79599721]
[1747250481108,5.636,177.41,177.36,59.16]
[1747250481311,5.636,177.41,177.38,5.6367]
[1747250481511,5.636,177.41,177.36,59.16]
[1747250481813,5.636,177.41,177.33,11.75357732]
[1747250482015,5.6355,177.42,177.33,11.75357732]
[1747250483321,5.6359,177.41,177.33,11.75357732]
[1747250484024,5.6359,177.41,177.37,5.6368]
[1747250484521,5.6359,177.41,177.33,11.75357732]
[1747250486128,5.6361,177.4,177.37,5.6368]
[1747250486419,118.38,177.4,177.32,59.18]
[1747250486821,122.2585,177.4,177.32,59.18]
[1747250487022,5.6377,177.36,177.28,59.2]
[1747250487320,59.2,177.36,177.27,222.18155195]
[1747250488122,64.8376,177.36,177.32,5.6384]
[1747250488727,118.38,177.36,177.27,93.95397463]
[1747250489422,61.0164,177.37,177.29,9.84757732]
[1747250490123,61.0164,177.37,177.27,93.95397463]
[1747250490325,5.638,177.34,177.27,93.95397463]
[1747250490524,5.638,177.34,177.3,5.639]
[1747250490719,61.0164,177.37,177.27,93.95397463]
[1747250490923,66.6535,177.37,177.27,93.95397463]
[1747250491123,61.0164,177.37,177.33,5.6381]
[1747250491328,61.0164,177.37,177.27,93.95397463]
[1747250491626,61.0164,177.37,177.3,5.639]
[1747250491823,61.0164,177.37,177.26,72.74357732]
[1747250492019,70.86397732,177.37,177.26,62.896]
[1747250492624,5.6384,177.33,177.26,62.896]
[1747250492827,65.1784,177.33,177.26,62.896]
[1747250493132,59.54,177.33,177.26,62.896]
[1747250493527,59.54,177.33,177.3,5.639]
[1747250494625,59.54,177.33,177.31,5.6389]
[1747250495125,59.54,177.33,177.15,97.39822096]
[1747250495126,118.74,177.33,177.16,11.2869]
[1747250495328,118.66,177.32,177.23,9.84757732]
[1747250495525,59.22,177.31,177.24,3.5996]
[1747250495725,59.22,177.31,177.26,5.6405]
[1747250496027,59.22,177.31,177.24,3.5996]
[1747250496429,5.64,177.28,177.24,5.6411]
[1747250496630,59.76,177.28,177.22,59.22]
[1747250496829,5.6404,177.27,177.22,64.8616]
[1747250497032,5.6404,177.27,177.22,5.6416]
[1747250497229,5.6404,177.27,177.2,9.84757732]
[1747250497434,59.22,177.31,177.23,9.84757732]
[1747250497627,3.7097,177.37,177.23,9.84757732]
[1747250497823,118.98,177.36,177.23,9.84757732]
[1747250498027,118.98,177.36,177.23,11.67537732]
[1747250498234,5.6388,177.32,177.28,5.6396]
[1747250498430,5.6388,177.32,177.23,11.67537732]
[1747250499334,5.638,177.34,177.26,9.84757732]
[1747250499830,5.6378,177.35,177.27,3.8074]
[1747250500041,65.2978,177.35,177.27,3.8074]
[1747250500229,65.2978,177.35,177.31,5.6387]
[1747250500431,5.638,177.34,177.31,5.6387]
[1747250500724,59.66,177.35,177.27,3.8074]
[1747250501240,65.2979,177.35,177.31,5.6387]
[1747250501532,65.2979,177.35,177.27,3.8074]
[1747250501738,59.66,177.35,177.27,3.8074]
[1747250502242,5.6374,177.36,177.27,3.8074]
[1747250502533,65.1974,177.36,177.27,3.8074]
[1747250503133,5.6377,177.35,177.27,3.8074]
[1747250503935,5.6377,177.35,177.32,5.6386]
[1747250504134,5.6377,177.35,177.27,3.8074]
[1747250505540,65.1974,177.36,177.27,3.8074]
[1747250506040,59.56,177.36,177.29,9.84757732]
[1747250506542,59.56,177.36,177.33,5.6382]
[1747250506842,64.8571,177.37,177.33,5.6382]
[1747250507043,5.6377,177.36,177.32,5.6385]
[1747250507238,118.64,177.37,177.27,3.8074]
[1747250507843,5.6378,177.35,177.31,5.6387]
[1747250508637,118.64,177.37,177.31,5.6387]
[1747250508843,5.6381,177.34,177.31,5.6387]
[1747250509542,5.6378,177.35,177.31,5.6387]
[1747250510243,5.6381,177.34,177.27,3.8074]
[1747250510542,118.64,177.37,177.27,3.8074]
[1747250510933,5.6379,177.35,177.31,5.6388]
[1747250512744,5.638,177.34,177.31,5.6388]
[1747250513442,118.64,177.37,177.3,5.6392]
[1747250513644,5.6383,177.33,177.3,5.6392]
[1747250513845,118.64,177.37,177.3,5.6392]
[1747250514045,5.6382,177.34,177.3,5.6392]
[1747250514845,5.6382,177.34,177.31,5.6389]
[1747250517451,5.6382,177.34,177.32,5.6385]
[1747250517842,5.6378,177.35,177.32,5.6385]
[1747250518039,118.64,177.37,177.31,5.6388]
[1747250518449,118.64,177.37,177.27,3.8074]
[1747250518755,5.6378,177.35,177.27,3.8074]
[1747250519655,64.8774,177.36,177.27,3.8074]
[1747250520558,5.6377,177.35,177.27,3.8074]
[1747250520959,5.6377,177.35,177.32,5.6384]
[1747250521261,59.24,177.36,177.27,3.8074]
[1747250521656,59.22,177.37,177.27,3.8074]
[1747250521960,118.46,177.37,177.27,3.8074]
[1747250522456,1.7753,177.36,177.27,3.8074]
[1747250523061,5.6381,177.34,177.3,5.639]
[1747250523252,5.6381,177.34,177.27,3.8074]
[1747250523457,1.7753,177.36,177.27,3.8074]
[1747250524062,61.0153,177.36,177.27,3.8074]